[Event "Early-Titled-Tuesday-Blitz-March-19-2024"]
[Site "Chess.com"]
[Date "2024.03.19"]
[Round "5"]
[White "Eliwood44"]
[Black "le-castor-faineant"]
[Result "1-0"]
[WhiteElo "2525"]
[BlackElo "2288"]
[TimeControl "180+1"]
[EndTime "8:53:35 PDT"]
[Termination "Eliwood44 won by resignation"]

1. d4 {[%clk 0:02:39.9]} 1... Nf6 {[%clk 0:02:55.4]} 2. c4 {[%clk 0:02:38.3]}
2... g6 {[%clk 0:02:55.3]} 3. Nf3 {[%clk 0:02:36.5]} 3... Bg7 {[%clk 0:02:55.2]}
4. e3 {[%clk 0:02:36.7]} 4... d6 {[%clk 0:02:55.1]} 5. Be2 {[%clk 0:02:36.3]}
5... O-O {[%clk 0:02:55.3]} 6. O-O {[%clk 0:02:36.6]} 6... Nbd7 {[%clk
0:02:54.7]} 7. Nc3 {[%clk 0:02:35.2]} 7... e5 {[%clk 0:02:54.5]} 8. b4 {[%clk
0:02:35.3]} 8... a5 {[%clk 0:02:53.6]} 9. b5 {[%clk 0:02:34.3]} 9... c6 {[%clk
0:02:51.3]} 10. a4 {[%clk 0:02:33.2]} 10... Qe7 {[%clk 0:02:51.1]} 11. Ba3
{[%clk 0:02:07.7]} 11... c5 {[%clk 0:02:51.1]} 12. dxc5 {[%clk 0:02:02.9]} 12...
dxc5 {[%clk 0:02:49.2]} 13. Nd5 {[%clk 0:02:01.8]} 13... Nxd5 {[%clk 0:02:46.5]}
14. cxd5 {[%clk 0:02:01.8]} 14... e4 {[%clk 0:02:46.6]} 15. Nd2 {[%clk
0:01:55.5]} 15... Bxa1 {[%clk 0:02:42.3]} 16. Qxa1 {[%clk 0:01:56.4]} 16... b6
{[%clk 0:02:41.2]} 17. Qb1 {[%clk 0:01:39.4]} 17... Nf6 {[%clk 0:02:36.2]} 18.
Bc4 {[%clk 0:01:38.5]} 18... Bb7 {[%clk 0:02:32.5]} 19. Qb3 {[%clk 0:01:37.2]}
19... Rad8 {[%clk 0:02:31.8]} 20. Bb2 {[%clk 0:01:34.5]} 20... Bxd5 {[%clk
0:02:12.1]} 21. Bxf6 {[%clk 0:01:32.1]} 21... Qxf6 {[%clk 0:02:12.1]} 22. Bxd5
{[%clk 0:01:32.1]} 22... Qd6 {[%clk 0:02:12.2]} 23. Nxe4 {[%clk 0:01:27.5]}
23... Qxd5 {[%clk 0:02:12.1]} 24. Nf6+ {[%clk 0:01:27.2]} 1-0

[Event "Early-Titled-Tuesday-Blitz-March-19-2024"]
[Site "Chess.com"]
[Date "2024.03.19"]
[Round "5"]
[White "guillembaches"]
[Black "AktilekAskarovich"]
[Result "1-0"]
[WhiteElo "2556"]
[BlackElo "2363"]
[TimeControl "180+1"]
[EndTime "8:53:37 PDT"]
[Termination "guillembaches won by resignation"]

1. d4 {[%clk 0:03:00.9]} 1... Nf6 {[%clk 0:02:59.1]} 2. Nf3 {[%clk 0:03:01.5]}
2... e6 {[%clk 0:02:58.5]} 3. Bg5 {[%clk 0:03:02]} 3... h6 {[%clk 0:02:57.9]} 4.
Bh4 {[%clk 0:03:01.7]} 4... Be7 {[%clk 0:02:56.3]} 5. Nbd2 {[%clk 0:03:01.5]}
5... d5 {[%clk 0:02:55.7]} 6. e3 {[%clk 0:03:01.8]} 6... O-O {[%clk 0:02:55.7]}
7. Bd3 {[%clk 0:03:02]} 7... c5 {[%clk 0:02:55.6]} 8. c3 {[%clk 0:03:02.3]} 8...
b6 {[%clk 0:02:55]} 9. Ne5 {[%clk 0:03:02.1]} 9... Nfd7 {[%clk 0:02:51.1]} 10.
Bxe7 {[%clk 0:02:59.8]} 10... Qxe7 {[%clk 0:02:52]} 11. f4 {[%clk 0:02:59.9]}
11... Nxe5 {[%clk 0:02:52.2]} 12. fxe5 {[%clk 0:03:00.8]} 12... f6 {[%clk
0:02:52.9]} 13. exf6 {[%clk 0:02:51.5]} 13... Rxf6 {[%clk 0:02:49.5]} 14. Nf3
{[%clk 0:02:51.6]} 14... Nd7 {[%clk 0:02:49.1]} 15. Bb5 {[%clk 0:02:48.6]} 15...
Nf8 {[%clk 0:02:02.6]} 16. O-O {[%clk 0:02:40.9]} 16... a6 {[%clk 0:02:02.4]}
17. Ba4 {[%clk 0:02:39.7]} 17... Bd7 {[%clk 0:02:01]} 18. Bc2 {[%clk 0:02:35.1]}
18... Be8 {[%clk 0:01:55.8]} 19. Ne5 {[%clk 0:02:30.7]} 19... Rxf1+ {[%clk
0:01:49]} 20. Qxf1 {[%clk 0:02:28.9]} 20... Qf6 {[%clk 0:01:49.6]} 21. Qd3
{[%clk 0:02:21.1]} 21... c4 {[%clk 0:01:49.6]} 22. Qd2 {[%clk 0:02:15.9]} 22...
Bg6 {[%clk 0:01:48.7]} 23. Rf1 {[%clk 0:02:10.3]} 23... Bxc2 {[%clk 0:01:35.3]}
24. Rxf6 {[%clk 0:02:04.6]} 24... gxf6 {[%clk 0:01:36.2]} 25. Ng4 {[%clk
0:01:59.8]} 1-0

[Event "Early-Titled-Tuesday-Blitz-March-19-2024"]
[Site "Chess.com"]
[Date "2024.03.19"]
[Round "5"]
[White "KVAIDAN"]
[Black "Revan_2002"]
[Result "0-1"]
[WhiteElo "2331"]
[BlackElo "2581"]
[TimeControl "180+1"]
[EndTime "8:53:50 PDT"]
[Termination "Revan_2002 won by resignation"]

1. f4 {[%clk 0:03:00.9]} 1... c5 {[%clk 0:02:58]} 2. Nf3 {[%clk 0:02:53.4]} 2...
Nc6 {[%clk 0:02:57.2]} 3. b3 {[%clk 0:02:52]} 3... Nf6 {[%clk 0:02:56.3]} 4. Bb2
{[%clk 0:02:50.9]} 4... g6 {[%clk 0:02:56.1]} 5. e4 {[%clk 0:02:50.4]} 5... d6
{[%clk 0:02:55]} 6. Bb5 {[%clk 0:02:49.1]} 6... Bg7 {[%clk 0:02:49.5]} 7. Bxc6+
{[%clk 0:02:48.1]} 7... bxc6 {[%clk 0:02:49.4]} 8. O-O {[%clk 0:02:48.6]} 8...
O-O {[%clk 0:02:49.1]} 9. d3 {[%clk 0:02:49]} 9... a5 {[%clk 0:02:42.1]} 10. a4
{[%clk 0:02:48.2]} 10... Bg4 {[%clk 0:02:41.6]} 11. Qe1 {[%clk 0:02:46.2]} 11...
Rb8 {[%clk 0:02:33.8]} 12. Na3 {[%clk 0:02:45.4]} 12... Bxf3 {[%clk 0:02:24]}
13. Rxf3 {[%clk 0:02:45]} 13... Nh5 {[%clk 0:02:24.5]} 14. Bxg7 {[%clk
0:02:42.8]} 14... Kxg7 {[%clk 0:02:23.8]} 15. Nc4 {[%clk 0:02:43.4]} 15... Ra8
{[%clk 0:02:17.8]} 16. Qc3+ {[%clk 0:02:35.1]} 16... Nf6 {[%clk 0:02:14.3]} 17.
g4 {[%clk 0:02:32.6]} 17... Kg8 {[%clk 0:02:13.8]} 18. g5 {[%clk 0:02:31.2]}
18... Nh5 {[%clk 0:02:13.5]} 19. Ne3 {[%clk 0:02:31.2]} 19... e5 {[%clk
0:02:08.6]} 20. Ng4 {[%clk 0:02:28]} 20... Nxf4 {[%clk 0:02:05.7]} 21. Nf6+
{[%clk 0:02:21]} 21... Qxf6 {[%clk 0:01:59.7]} 22. gxf6 {[%clk 0:02:15.3]} 22...
Ne2+ {[%clk 0:01:59.5]} 23. Kf2 {[%clk 0:02:15.9]} 23... Nxc3 {[%clk 0:02:00.4]}
24. h4 {[%clk 0:02:14.3]} 24... d5 {[%clk 0:01:56.5]} 25. Ke3 {[%clk 0:02:12.1]}
25... d4+ {[%clk 0:01:54.4]} 26. Kf2 {[%clk 0:02:11]} 26... h5 {[%clk
0:01:54.6]} 27. Rg3 {[%clk 0:02:07]} 27... Rfe8 {[%clk 0:01:54.9]} 28. Rg5
{[%clk 0:02:07.3]} 28... Re6 {[%clk 0:01:55.2]} 29. Ke1 {[%clk 0:02:05]} 29...
Rae8 {[%clk 0:01:54.2]} 30. Kd2 {[%clk 0:02:04.2]} 30... Rxf6 {[%clk 0:01:54.4]}
31. Kc1 {[%clk 0:02:02.5]} 31... Rf4 {[%clk 0:01:53.9]} 32. Kb2 {[%clk
0:02:01.1]} 32... Rxh4 {[%clk 0:01:53.5]} 33. Rf1 {[%clk 0:02:01.6]} 33... Kg7
{[%clk 0:01:53]} 0-1

[Event "Early-Titled-Tuesday-Blitz-March-19-2024"]
[Site "Chess.com"]
[Date "2024.03.19"]
[Round "5"]
[White "cristiano78"]
[Black "Boorchess"]
[Result "1-0"]
[WhiteElo "2242"]
[BlackElo "2548"]
[TimeControl "180+1"]
[EndTime "8:54:03 PDT"]
[Termination "cristiano78 won by resignation"]

1. d4 {[%clk 0:02:59]} 1... d5 {[%clk 0:02:59]} 2. c4 {[%clk 0:02:58.9]} 2... e5
{[%clk 0:02:58.6]} 3. dxe5 {[%clk 0:02:59]} 3... d4 {[%clk 0:02:58.6]} 4. Nf3
{[%clk 0:02:59.5]} 4... Nc6 {[%clk 0:02:58.9]} 5. g3 {[%clk 0:02:57.6]} 5...
Nge7 {[%clk 0:02:58.6]} 6. Bg2 {[%clk 0:02:57]} 6... Ng6 {[%clk 0:02:59.1]} 7.
O-O {[%clk 0:02:56.3]} 7... Ngxe5 {[%clk 0:02:58.8]} 8. Nbd2 {[%clk 0:02:56.2]}
8... Be7 {[%clk 0:02:53.4]} 9. b3 {[%clk 0:02:53.1]} 9... O-O {[%clk 0:02:46.8]}
10. Bb2 {[%clk 0:02:53.1]} 10... Nxf3+ {[%clk 0:02:35.8]} 11. Nxf3 {[%clk
0:02:52.9]} 11... Bf6 {[%clk 0:02:35.7]} 12. a3 {[%clk 0:02:51.8]} 12... a5
{[%clk 0:02:34.9]} 13. Qd3 {[%clk 0:02:50.4]} 13... Re8 {[%clk 0:02:32.9]} 14.
Rad1 {[%clk 0:02:49.4]} 14... g6 {[%clk 0:02:31.1]} 15. Nxd4 {[%clk 0:02:49.4]}
15... Nxd4 {[%clk 0:02:30.1]} 16. Bxd4 {[%clk 0:02:49.3]} 16... c6 {[%clk
0:01:53.9]} 17. Bxf6 {[%clk 0:02:45.7]} 17... Qxf6 {[%clk 0:01:53.9]} 18. Rfe1
{[%clk 0:02:42.2]} 18... Be6 {[%clk 0:01:52.3]} 19. e4 {[%clk 0:02:40.2]} 19...
a4 {[%clk 0:01:51.3]} 20. b4 {[%clk 0:02:39.7]} 20... Rad8 {[%clk 0:01:49.7]}
21. Qc2 {[%clk 0:02:39.7]} 21... Rd4 {[%clk 0:01:45.3]} 22. Rxd4 {[%clk
0:02:39]} 22... Qxd4 {[%clk 0:01:44.1]} 23. Qxa4 {[%clk 0:02:37.4]} 23... Bxc4
{[%clk 0:01:41.3]} 24. Qc2 {[%clk 0:02:36.5]} 24... Rd8 {[%clk 0:01:39.1]} 25.
Bf1 {[%clk 0:02:31.7]} 25... Bxf1 {[%clk 0:01:34.9]} 26. Kxf1 {[%clk 0:02:31.7]}
26... Ra8 {[%clk 0:01:31.7]} 27. Qb3 {[%clk 0:02:26.4]} 27... h5 {[%clk
0:01:27]} 28. e5 {[%clk 0:02:23.9]} 28... Re8 {[%clk 0:01:15.3]} 29. e6 {[%clk
0:02:23.1]} 29... fxe6 {[%clk 0:01:07.1]} 30. Rxe6 {[%clk 0:02:21.9]} 30... Rxe6
{[%clk 0:01:07.2]} 31. Qxe6+ {[%clk 0:02:21.7]} 31... Kg7 {[%clk 0:01:07.5]} 32.
Qe7+ {[%clk 0:02:18.9]} 32... Kh6 {[%clk 0:01:05.3]} 33. Qe3+ {[%clk 0:02:16.3]}
1-0

[Event "Early-Titled-Tuesday-Blitz-March-19-2024"]
[Site "Chess.com"]
[Date "2024.03.19"]
[Round "5"]
[White "ExchangeAB"]
[Black "madmax011"]
[Result "1-0"]
[WhiteElo "2536"]
[BlackElo "2325"]
[TimeControl "180+1"]
[EndTime "8:54:11 PDT"]
[Termination "ExchangeAB won by resignation"]

1. e4 {[%clk 0:03:00.9]} 1... c5 {[%clk 0:02:59.9]} 2. Nf3 {[%clk 0:03:00.6]}
2... d6 {[%clk 0:03:00.5]} 3. d4 {[%clk 0:03:00.1]} 3... cxd4 {[%clk 0:03:01.4]}
4. Nxd4 {[%clk 0:03:00.8]} 4... Nf6 {[%clk 0:03:02]} 5. Nc3 {[%clk 0:03:00.9]}
5... a6 {[%clk 0:03:02.5]} 6. Bg5 {[%clk 0:02:53.8]} 6... e6 {[%clk 0:03:02.2]}
7. f4 {[%clk 0:02:51.5]} 7... Be7 {[%clk 0:03:02.6]} 8. Qf3 {[%clk 0:02:50.2]}
8... Qc7 {[%clk 0:03:02.2]} 9. O-O-O {[%clk 0:02:49.7]} 9... Nbd7 {[%clk
0:03:00.8]} 10. g4 {[%clk 0:02:49]} 10... h6 {[%clk 0:03:00.1]} 11. Bxf6 {[%clk
0:02:48.4]} 11... Nxf6 {[%clk 0:02:58.5]} 12. h4 {[%clk 0:02:45.9]} 12... e5
{[%clk 0:02:44.8]} 13. Nf5 {[%clk 0:02:38.4]} 13... Bxf5 {[%clk 0:02:39.6]} 14.
exf5 {[%clk 0:02:33.1]} 14... O-O-O {[%clk 0:02:39.3]} 15. g5 {[%clk 0:02:26]}
15... hxg5 {[%clk 0:02:36.9]} 16. fxg5 {[%clk 0:02:24.8]} 16... Nh5 {[%clk
0:02:32.7]} 17. Nd5 {[%clk 0:02:21.1]} 17... Qa5 {[%clk 0:02:27.9]} 18. Nxe7+
{[%clk 0:02:13.9]} 18... Kb8 {[%clk 0:02:27.5]} 19. Bg2 {[%clk 0:02:02.4]} 19...
d5 {[%clk 0:02:20.6]} 20. Rxd5 {[%clk 0:01:55.9]} 20... Qb4 {[%clk 0:02:15.7]}
21. Rxd8+ {[%clk 0:01:48.4]} 21... Rxd8 {[%clk 0:02:16.6]} 22. c3 {[%clk
0:01:32]} 22... Qxe7 {[%clk 0:02:10.9]} 23. Qxh5 {[%clk 0:01:31.4]} 23... Qd7
{[%clk 0:02:06.5]} 24. Rd1 {[%clk 0:01:22.2]} 24... Qe7 {[%clk 0:01:56.5]} 25.
Rxd8+ {[%clk 0:01:20]} 25... Qxd8 {[%clk 0:01:57.4]} 26. Qf3 {[%clk 0:01:20.3]}
26... Qd7 {[%clk 0:01:54.3]} 27. Qxb7+ {[%clk 0:01:20.1]} 27... Qxb7 {[%clk
0:01:53.9]} 28. Bxb7 {[%clk 0:01:21]} 28... Kxb7 {[%clk 0:01:54.6]} 29. h5
{[%clk 0:01:21.7]} 29... Kc6 {[%clk 0:01:51.4]} 30. h6 {[%clk 0:01:21.8]} 30...
gxh6 {[%clk 0:01:52.1]} 31. gxh6 {[%clk 0:01:21.9]} 31... Kd5 {[%clk 0:01:53]}
32. h7 {[%clk 0:01:22.3]} 32... Ke4 {[%clk 0:01:53.9]} 33. h8=Q {[%clk
0:01:22.7]} 33... Kxf5 {[%clk 0:01:54.8]} 1-0

[Event "Early-Titled-Tuesday-Blitz-March-19-2024"]
[Site "Chess.com"]
[Date "2024.03.19"]
[Round "5"]
[White "rk12387"]
[Black "ljuks68"]
[Result "0-1"]
[WhiteElo "2154"]
[BlackElo "2448"]
[TimeControl "180+1"]
[EndTime "8:54:22 PDT"]
[Termination "ljuks68 won by checkmate"]

1. Nc3 {[%clk 0:02:58.3]} 1... d5 {[%clk 0:02:59.6]} 2. e4 {[%clk 0:02:58.7]}
2... e6 {[%clk 0:02:52.6]} 3. d4 {[%clk 0:02:58.3]} 3... Bb4 {[%clk 0:02:51.2]}
4. Ne2 {[%clk 0:02:57.9]} 4... Nc6 {[%clk 0:02:50.4]} 5. a3 {[%clk 0:02:56.7]}
5... Ba5 {[%clk 0:02:49.7]} 6. b4 {[%clk 0:02:54.4]} 6... Bb6 {[%clk 0:02:49.1]}
7. e5 {[%clk 0:02:53.7]} 7... f6 {[%clk 0:02:49.4]} 8. f4 {[%clk 0:02:51.1]}
8... fxe5 {[%clk 0:02:48.2]} 9. fxe5 {[%clk 0:02:51.6]} 9... Nge7 {[%clk
0:02:47.8]} 10. Na4 {[%clk 0:02:42.4]} 10... Nf5 {[%clk 0:02:46.2]} 11. Nxb6
{[%clk 0:02:42.4]} 11... axb6 {[%clk 0:02:46.6]} 12. c3 {[%clk 0:02:42.7]} 12...
O-O {[%clk 0:02:41]} 13. Nf4 {[%clk 0:02:38.2]} 13... Qh4+ {[%clk 0:02:38.5]}
14. g3 {[%clk 0:02:37.8]} 14... Nxg3 {[%clk 0:02:35.2]} 15. Ng2 {[%clk
0:02:33.4]} 15... Qe4+ {[%clk 0:02:21.5]} 16. Be3 {[%clk 0:02:32.4]} 16... Nxh1
{[%clk 0:02:14.6]} 17. Bd3 {[%clk 0:02:31.6]} 17... Qxg2 {[%clk 0:02:06.2]} 18.
Bxh7+ {[%clk 0:02:25.5]} 18... Kxh7 {[%clk 0:02:02.8]} 19. Qh5+ {[%clk
0:02:25.8]} 19... Kg8 {[%clk 0:02:02.8]} 20. O-O-O {[%clk 0:02:26.3]} 20... Rxa3
{[%clk 0:02:00]} 21. Bd2 {[%clk 0:02:13.7]} 21... Ra1+ {[%clk 0:01:42.9]} 22.
Kb2 {[%clk 0:02:13.5]} 22... Rxd1 {[%clk 0:01:41.6]} 23. Qxd1 {[%clk 0:02:13.9]}
23... Nf2 {[%clk 0:01:36.3]} 24. Qe2 {[%clk 0:02:10.8]} 24... Qf3 {[%clk
0:01:35.4]} 25. Qe1 {[%clk 0:02:08.8]} 25... Ne4 {[%clk 0:01:35.2]} 26. Bc1
{[%clk 0:02:05.4]} 26... Qg2+ {[%clk 0:01:25]} 27. Kb3 {[%clk 0:02:05.4]} 27...
Rf3 {[%clk 0:01:23.7]} 28. Bb2 {[%clk 0:02:04.2]} 28... Nxd4+ {[%clk 0:01:14.5]}
29. Ka4 {[%clk 0:01:57.4]} 29... Nxc3+ {[%clk 0:01:03.3]} 30. Bxc3 {[%clk
0:01:56.7]} 30... Qa2# {[%clk 0:01:03.2]} 0-1

[Event "Early-Titled-Tuesday-Blitz-March-19-2024"]
[Site "Chess.com"]
[Date "2024.03.19"]
[Round "5"]
[White "Lady_Nika"]
[Black "diamonds13"]
[Result "1-0"]
[WhiteElo "2582"]
[BlackElo "2343"]
[TimeControl "180+1"]
[EndTime "8:54:33 PDT"]
[Termination "Lady_Nika won by resignation"]

1. g4 {[%clk 0:02:58.5]} 1... d5 {[%clk 0:02:58.8]} 2. h3 {[%clk 0:02:57.2]}
2... e5 {[%clk 0:02:58.1]} 3. Bg2 {[%clk 0:02:57.3]} 3... h5 {[%clk 0:02:57.5]}
4. gxh5 {[%clk 0:02:55.3]} 4... Nf6 {[%clk 0:02:56.9]} 5. d4 {[%clk 0:02:54.1]}
5... e4 {[%clk 0:02:56.3]} 6. Bg5 {[%clk 0:02:53.5]} 6... Rxh5 {[%clk
0:02:55.7]} 7. h4 {[%clk 0:02:50.5]} 7... Be7 {[%clk 0:02:53.6]} 8. Bh3 {[%clk
0:02:49.6]} 8... Bg4 {[%clk 0:02:50.4]} 9. Qd2 {[%clk 0:02:44]} 9... Nbd7 {[%clk
0:02:45]} 10. Nc3 {[%clk 0:02:43.3]} 10... Bxh3 {[%clk 0:02:38.6]} 11. Nxh3
{[%clk 0:02:42.9]} 11... Ng4 {[%clk 0:02:38.4]} 12. Qf4 {[%clk 0:02:21.9]} 12...
Ndf6 {[%clk 0:02:34.1]} 13. f3 {[%clk 0:01:59.1]} 13... Bd6 {[%clk 0:02:33.4]}
14. Qxg4 {[%clk 0:01:50.8]} 14... Nxg4 {[%clk 0:02:29.6]} 15. Bxd8 {[%clk
0:01:50.7]} 15... Bg3+ {[%clk 0:02:28.3]} 16. Kd2 {[%clk 0:01:48.4]} 16... e3+
{[%clk 0:02:27.7]} 17. Kd3 {[%clk 0:01:46.7]} 17... Rxd8 {[%clk 0:02:07.5]} 18.
fxg4 {[%clk 0:01:45.7]} 18... Rxh4 {[%clk 0:02:07.6]} 19. Kxe3 {[%clk
0:01:39.4]} 19... Kd7 {[%clk 0:01:54.9]} 20. Kf3 {[%clk 0:01:38.3]} 20... Bd6
{[%clk 0:01:51.8]} 21. Ng5 {[%clk 0:01:35.4]} 21... Rdh8 {[%clk 0:01:45.7]} 22.
Rxh4 {[%clk 0:01:34]} 22... Rxh4 {[%clk 0:01:45.7]} 23. Nxf7 {[%clk 0:01:34.3]}
23... Rh3+ {[%clk 0:01:45.3]} 24. Kg2 {[%clk 0:01:33.8]} 24... Rh2+ {[%clk
0:01:43.3]} 25. Kg1 {[%clk 0:01:34]} 25... Rh4 {[%clk 0:01:37.4]} 26. Nxd6
{[%clk 0:01:22.4]} 26... Rxg4+ {[%clk 0:01:36.6]} 27. Kf2 {[%clk 0:01:22]} 27...
Kxd6 {[%clk 0:01:35.4]} 28. Rg1 {[%clk 0:01:18.8]} 28... Rxd4 {[%clk 0:01:33.2]}
29. Nb5+ {[%clk 0:01:17.2]} 1-0

[Event "Early-Titled-Tuesday-Blitz-March-19-2024"]
[Site "Chess.com"]
[Date "2024.03.19"]
[Round "5"]
[White "Szparu"]
[Black "musclemonster12"]
[Result "1-0"]
[WhiteElo "2812"]
[BlackElo "2582"]
[TimeControl "180+1"]
[EndTime "8:54:42 PDT"]
[Termination "Szparu won by resignation"]

1. e4 {[%clk 0:03:00.3]} 1... c6 {[%clk 0:02:58.5]} 2. d4 {[%clk 0:03:00.1]}
2... d5 {[%clk 0:02:58]} 3. e5 {[%clk 0:03:00.7]} 3... c5 {[%clk 0:02:57.2]} 4.
dxc5 {[%clk 0:03:00.7]} 4... e6 {[%clk 0:02:57.1]} 5. a3 {[%clk 0:03:00.6]} 5...
Bxc5 {[%clk 0:02:56.2]} 6. Qg4 {[%clk 0:02:59.6]} 6... Ne7 {[%clk 0:02:19.3]} 7.
b4 {[%clk 0:02:59.4]} 7... h5 {[%clk 0:02:06.5]} 8. Qd1 {[%clk 0:02:59.3]} 8...
Bb6 {[%clk 0:02:04.5]} 9. Nf3 {[%clk 0:02:58.9]} 9... a5 {[%clk 0:02:04.1]} 10.
Bb2 {[%clk 0:02:58.2]} 10... axb4 {[%clk 0:02:03.6]} 11. axb4 {[%clk 0:02:58.4]}
11... Rxa1 {[%clk 0:02:03.6]} 12. Bxa1 {[%clk 0:02:59.3]} 12... Nbc6 {[%clk
0:02:02.1]} 13. b5 {[%clk 0:02:57.6]} 13... Na5 {[%clk 0:02:02.2]} 14. Nbd2
{[%clk 0:02:55.3]} 14... Bd7 {[%clk 0:02:02]} 15. Bd3 {[%clk 0:02:54.5]} 15...
h4 {[%clk 0:01:50.1]} 16. O-O {[%clk 0:02:48.6]} 16... h3 {[%clk 0:01:49.6]} 17.
g3 {[%clk 0:02:49.1]} 17... Qc7 {[%clk 0:01:48.4]} 18. Ng5 {[%clk 0:02:41.4]}
18... g6 {[%clk 0:00:52.7]} 19. Qf3 {[%clk 0:02:08.8]} 19... Nf5 {[%clk
0:00:52.7]} 20. g4 {[%clk 0:02:06.9]} 20... Nh6 {[%clk 0:00:52.5]} 21. Qf6
{[%clk 0:01:36.4]} 21... Rg8 {[%clk 0:00:51]} 22. Ndf3 {[%clk 0:01:36]} 22...
Nxg4 {[%clk 0:00:48.1]} 23. Qxf7+ {[%clk 0:01:36]} 1-0

[Event "Early-Titled-Tuesday-Blitz-March-19-2024"]
[Site "Chess.com"]
[Date "2024.03.19"]
[Round "5"]
[White "edgarhay012"]
[Black "ikhasu"]
[Result "0-1"]
[WhiteElo "2640"]
[BlackElo "2491"]
[TimeControl "180+1"]
[EndTime "8:54:57 PDT"]
[Termination "ikhasu won by resignation"]

1. e4 {[%clk 0:03:00.9]} 1... c5 {[%clk 0:02:59.4]} 2. Nc3 {[%clk 0:03:00.6]}
2... a6 {[%clk 0:02:56.5]} 3. Nf3 {[%clk 0:03:00]} 3... b5 {[%clk 0:02:56.6]} 4.
d4 {[%clk 0:03:00.6]} 4... cxd4 {[%clk 0:02:56.3]} 5. Nxd4 {[%clk 0:03:01.5]}
5... Bb7 {[%clk 0:02:56.5]} 6. g3 {[%clk 0:03:01.9]} 6... b4 {[%clk 0:02:56.3]}
7. Nd5 {[%clk 0:02:59.8]} 7... e6 {[%clk 0:02:56.7]} 8. Bg2 {[%clk 0:02:28.4]}
8... exd5 {[%clk 0:02:56.1]} 9. exd5 {[%clk 0:02:29.3]} 9... Bc5 {[%clk
0:02:35.1]} 10. O-O {[%clk 0:02:28.5]} 10... Ne7 {[%clk 0:02:34.5]} 11. d6
{[%clk 0:02:23.8]} 11... Bxg2 {[%clk 0:02:33.3]} 12. dxe7 {[%clk 0:02:23.9]}
12... Qb6 {[%clk 0:02:33.5]} 13. Nf5 {[%clk 0:02:03.3]} 13... Bxf1 {[%clk
0:02:26.9]} 14. Qd5 {[%clk 0:02:03.3]} 14... Bh3 {[%clk 0:01:43.6]} 15. Nxg7+
{[%clk 0:00:37.4]} 15... Kxe7 {[%clk 0:01:43.1]} 16. Bg5+ {[%clk 0:00:38]} 16...
Kf8 {[%clk 0:01:39.9]} 17. Nh5 {[%clk 0:00:32.7]} 17... Bxf2+ {[%clk 0:01:37.7]}
18. Kh1 {[%clk 0:00:33]} 18... Qc6 {[%clk 0:01:29.7]} 19. Bh6+ {[%clk
0:00:32.8]} 19... Ke8 {[%clk 0:01:29.1]} 0-1

[Event "Early-Titled-Tuesday-Blitz-March-19-2024"]
[Site "Chess.com"]
[Date "2024.03.19"]
[Round "5"]
[White "Crazy_girl99"]
[Black "wild3000"]
[Result "1-0"]
[WhiteElo "2609"]
[BlackElo "2430"]
[TimeControl "180+1"]
[EndTime "8:54:59 PDT"]
[Termination "Crazy_girl99 won by resignation"]

1. e4 {[%clk 0:03:00.1]} 1... a6 {[%clk 0:02:59.7]} 2. f4 {[%clk 0:02:59]} 2...
b5 {[%clk 0:02:59.5]} 3. Nf3 {[%clk 0:02:58.9]} 3... Bb7 {[%clk 0:02:59.6]} 4.
d3 {[%clk 0:02:59.5]} 4... c5 {[%clk 0:02:59]} 5. g3 {[%clk 0:02:59]} 5... Nc6
{[%clk 0:02:59.1]} 6. Bg2 {[%clk 0:02:59.5]} 6... d6 {[%clk 0:02:59.5]} 7. Be3
{[%clk 0:02:59.6]} 7... e6 {[%clk 0:02:59.4]} 8. Nbd2 {[%clk 0:02:59.5]} 8...
Nf6 {[%clk 0:02:56.9]} 9. h3 {[%clk 0:02:59.2]} 9... Be7 {[%clk 0:02:56.7]} 10.
Qe2 {[%clk 0:02:56.5]} 10... O-O {[%clk 0:02:53.2]} 11. O-O {[%clk 0:02:55.7]}
11... Qb6 {[%clk 0:02:45.6]} 12. Kh2 {[%clk 0:02:53.9]} 12... Nd4 {[%clk
0:02:41.6]} 13. Nxd4 {[%clk 0:02:48.8]} 13... cxd4 {[%clk 0:02:42.5]} 14. Bg1
{[%clk 0:02:49.1]} 14... Rac8 {[%clk 0:02:38.3]} 15. c3 {[%clk 0:02:45.2]} 15...
e5 {[%clk 0:02:36.5]} 16. cxd4 {[%clk 0:02:44.8]} 16... exd4 {[%clk 0:02:26.4]}
17. Nb3 {[%clk 0:02:45]} 17... a5 {[%clk 0:02:15.1]} 18. Nxd4 {[%clk 0:02:42.9]}
18... Qa6 {[%clk 0:02:10.6]} 19. Nf5 {[%clk 0:02:42.7]} 19... Bd8 {[%clk
0:02:10.1]} 20. Bd4 {[%clk 0:02:37.5]} 20... b4 {[%clk 0:02:08.3]} 21. Rac1
{[%clk 0:02:32.2]} 21... Re8 {[%clk 0:02:05.3]} 22. Qd2 {[%clk 0:02:05.8]} 22...
Qb5 {[%clk 0:01:44.8]} 23. Nxd6 {[%clk 0:02:00.1]} 23... Qd7 {[%clk 0:01:41.3]}
24. Nxe8 {[%clk 0:01:52.1]} 24... Qxd4 {[%clk 0:01:37.9]} 25. Nxf6+ {[%clk
0:01:51.4]} 25... Bxf6 {[%clk 0:01:33.5]} 26. Rxc8+ {[%clk 0:01:51.5]} 26...
Bxc8 {[%clk 0:01:33.7]} 27. e5 {[%clk 0:01:52.2]} 27... Be7 {[%clk 0:01:33.5]}
28. Rc1 {[%clk 0:01:51.7]} 28... Qd7 {[%clk 0:01:31.2]} 29. Qc2 {[%clk
0:01:50.2]} 29... Ba6 {[%clk 0:01:27.9]} 30. Qc6 {[%clk 0:01:48.5]} 30... Qxd3
{[%clk 0:01:26.1]} 31. e6 {[%clk 0:01:22.5]} 31... Qe2 {[%clk 0:01:07.9]} 32.
Qe8+ {[%clk 0:01:19.5]} 32... Bf8 {[%clk 0:01:07.4]} 33. exf7+ {[%clk
0:01:20.1]} 1-0